bitfinex-derivatives/quotes_SOLF0:USTF0_20250312
["timestamp","ask_amount","ask_price","bid_price","bid_amount"]
[1741743400818,0.05537472,125.62,125.6,8.01656663]
[1741743401712,0.05537472,125.62,125.6,0.05296663]
[1741743402815,0.05537472,125.62,125.6,8.01636663]
[1741743403012,0.05537472,125.62,125.6,0.05296663]
[1741743403920,0.05537472,125.62,125.6,8.01666663]
[1741743404813,0.05537472,125.62,125.6,0.05296663]
[1741743405018,0.05537472,125.62,125.61,7.9633]
[1741743410415,47.60973593,125.69,125.6,47.04291182]
[1741743410624,47.60973593,125.69,125.6,46.98994519]
[1741743411524,0.05872493,125.66,125.65,7.9608]
[1741743412214,74.11347498,125.71,125.68,7.9585]
[1741743412414,43.77347498,125.71,125.68,7.9585]
[1741743413223,43.77347498,125.71,125.69,7.9581]
[1741743413419,43.83212169,125.71,125.69,7.9581]
[1741743413620,43.83212169,125.71,125.68,0.05140146]
[1741743414020,43.83212169,125.71,125.68,16.70134665]
[1741743414318,43.83212169,125.71,125.69,30.34]
[1741743414916,43.83212169,125.71,125.7,7.9576]
[1741743415422,346.99379537,125.73,125.7,16.64994519]
[1741743415423,130.12267326,125.73,125.7,16.64994519]
[1741743415722,48.27808708,125.76,125.7,16.64994519]
[1741743416517,0.05712985,125.74,125.72,0.0530715]
[1741743416720,0.05712985,125.74,125.72,30.3730715]
[1741743416918,0.05712985,125.74,125.73,7.9557]
[1741743417111,34.24348708,125.76,125.72,47.02301669]
[1741743417313,8.708e-05,125.76,125.75,16.64994519]
[1741743417519,47.83007998,125.77,125.76,7.9538]
[1741743417716,47.25487998,125.77,125.76,7.9538]
[1741743418618,47.25487998,125.77,125.75,54.98475552]
[1741743418830,0.05135732,125.78,125.75,47.03045552]
[1741743419621,0.05135732,125.78,125.75,0.06051033]
[1741743421021,16.64994519,125.77,125.69,238.78]
[1741743421230,16.64994519,125.75,125.68,30.3]
[1741743421418,16.64994519,125.75,125.66,30.3]
[1741743421619,7.9569,125.72,125.67,7.9591]
[1741743421819,30.3,125.76,125.67,16.64994519]
[1741743422015,30.3,125.76,125.69,16.64994519]
[1741743422226,0.05493081,125.73,125.7,0.05194348]
[1741743423226,0.05493081,125.73,125.71,7.9565]
[1741743424427,0.05493081,125.73,125.72,7.9564]
[1741743425237,0.05493081,125.73,125.71,7.9565]
[1741743425417,0.05493081,125.73,125.7,0.05194348]
[1741743425924,16.704876,125.73,125.7,0.05194348]
[1741743426123,6.3042,125.72,125.66,30.3]
[1741743427332,0.05042807,125.7,125.68,0.06057043]
[1741743429024,0.05042807,125.7,125.68,8.01927043]
[1741743429232,0.05042807,125.7,125.68,0.06057043]
[1741743429931,0.05042807,125.7,125.69,7.9583]
[1741743430232,0.05042807,125.7,125.69,38.2583]
[1741743431126,2.807e-05,125.7,125.69,54.90824519]
[1741743431327,2.1984,125.77,125.69,49.32994519]
[1741743431529,2.1984,125.77,125.72,16.64994519]
[1741743431730,2.1984,125.77,125.73,7.9557]
[1741743432031,2.1984,125.77,125.72,46.94994519]
[1741743432430,0.06017754,125.76,125.75,7.9544]
[1741743433735,0.06017754,125.76,125.73,0.05483041]
[1741743434339,0.06017754,125.76,125.74,7.9547]
[1741743434636,0.06017754,125.76,125.73,0.05483041]
[1741743434833,0.06017754,125.76,125.73,8.01033041]
[1741743435536,0.06017754,125.76,125.73,0.05483041]
[1741743435740,30.36017754,125.76,125.68,46.94994519]
[1741743435939,30.3,125.76,125.68,46.94994519]
[1741743436541,16.64994519,125.75,125.68,30.3]
[1741743436837,0.05222163,125.73,125.7,0.05160478]
[1741743437738,8.00832163,125.73,125.7,0.05160478]
[1741743437941,0.05222163,125.73,125.7,0.05160478]
[1741743438142,0.05222163,125.73,125.71,7.957]
[1741743438441,0.05222163,125.73,125.7,0.05160478]
[1741743438637,8.00812163,125.73,125.7,8.00890478]
[1741743439044,0.05222163,125.73,125.7,8.00890478]
[1741743439543,0.05222163,125.73,125.7,0.05160478]
[1741743440137,0.05222163,125.73,125.72,7.9564]
[1741743440642,0.05222163,125.73,125.71,7.9566]
[1741743440943,0.05222163,125.73,125.7,0.05160478]
[1741743442044,0.05222163,125.73,125.71,30.3]
[1741743442239,0.05222163,125.73,125.72,7.9564]
[1741743445038,1.9957,125.78,125.77,7.9532]
[1741743445243,1.9957,125.78,125.75,30.3]
[1741743446349,2.05094199,125.78,125.76,7.9533]
[1741743446643,2.05094199,125.78,125.75,30.35240418]
[1741743447947,2.05094199,125.78,125.76,7.9538]
[1741743448148,2.05094199,125.78,125.75,30.35240418]
[1741743448645,2.05094199,125.78,125.76,7.9538]
[1741743449440,2.05094199,125.78,125.75,30.35240418]
[1741743449648,2.05094199,125.78,125.75,0.05240418]
[1741743449845,7.9539,125.76,125.68,26.57499443]
[1741743450144,28.65939443,125.77,125.66,26.57499443]
[1741743450342,58.95939443,125.77,125.67,30.3]
[1741743450543,58.95939443,125.77,125.69,7.9582]
[1741743450942,0.05159351,125.74,125.72,0.05911735]
[1741743453746,0.05159351,125.74,125.72,8.01511735]
[1741743453945,0.05159351,125.74,125.72,0.05911735]
[1741743454150,0.05159351,125.74,125.73,7.9557]
[1741743456050,0.05159351,125.74,125.72,0.05911735]
[1741743456247,0.05159351,125.74,125.72,8.01521735]
[1741743456550,0.05159351,125.74,125.72,0.05911735]
[1741743457051,0.05159351,125.74,125.73,7.9557]
[1741743457948,0.05159351,125.74,125.72,0.05911735]
[1741743458545,8.00699351,125.74,125.72,0.05911735]
[1741743458745,0.05159351,125.74,125.72,0.05911735]
[1741743459047,0.05159351,125.74,125.69,7.9582]
[1741743459352,0.05159351,125.74,125.67,255.20418849]
[1741743459551,0.05159351,125.74,125.7,7.9571]
[1741743459752,0.05159351,125.74,125.68,30.3]
[1741743460253,0.05159351,125.74,125.7,0.05350148]
[1741743460553,7.9561,125.73,125.7,8.01080148]
[1741743460758,9.9651,125.73,125.7,8.01080148]
[1741743461552,7.9564,125.72,125.7,0.05350148]
[1741743461750,2.009,125.73,125.65,16.60418849]
[1741743462054,18.65078849,125.72,125.66,7.9598]
[1741743462249,18.65078849,125.72,125.65,30.3]
[1741743462449,16.60418849,125.7,125.62,208.02726845]
[1741743462657,16.60418849,125.68,125.61,30.3]
[1741743462855,0.05913924,125.66,125.63,0.05995905]
[1741743463154,7.9609,125.65,125.63,0.05995905]
[1741743463955,10.06613924,125.66,125.63,0.05995905]
[1741743464350,2.10573924,125.66,125.63,8.02165905]
[1741743464857,2.10573924,125.66,125.63,0.05995905]
[1741743465344,2.10573924,125.66,125.64,7.9613]
[1741743465753,2.10573924,125.66,125.63,0.05995905]
[1741743466050,2.10573924,125.66,125.64,7.961]
[1741743466457,0.05913924,125.66,125.63,0.05995905]
[1741743466852,0.05913924,125.66,125.64,30.3]
[1741743467554,0.05913924,125.66,125.64,38.2613]
[1741743467947,0.05913924,125.66,125.64,30.3]
[1741743468345,0.05913924,125.66,125.63,8.02175905]
[1741743469247,0.05913924,125.66,125.63,0.05995905]
[1741743470451,0.05913924,125.66,125.64,7.961]
[1741743470958,0.05913924,125.66,125.63,8.02175905]
[1741743472152,0.05913924,125.66,125.63,0.05995905]
[1741743472552,7.9609,125.65,125.63,0.05995905]
[1741743472754,0.05913924,125.66,125.63,0.05995905]
[1741743472951,0.05913924,125.66,125.55,265.44954607]
[1741743473149,7.9621,125.63,125.56,30.32]
[1741743473358,7.9621,125.63,125.59,7.9646]
[1741743473761,28.78994607,125.67,125.59,7.9646]
[1741743473955,28.78994607,125.67,125.6,7.9638]
[1741743474258,0.05048895,125.64,125.62,0.05172054]
[1741743475962,0.05048895,125.64,125.63,7.9621]
[1741743482071,0.05048895,125.64,125.62,38.33412054]
[1741743482466,0.05048895,125.64,125.62,30.37172054]
[1741743482669,0.05048895,125.64,125.63,7.9621]
[1741743488076,2.0325,125.7,125.67,7.9594]
[1741743488574,9.9905,125.7,125.65,30.32]
[1741743488775,9.9905,125.7,125.66,7.9598]
[1741743489075,9.9905,125.7,125.65,30.32]
[1741743489276,0.05956851,125.69,125.67,0.05483946]
[1741743492080,0.05956851,125.69,125.68,7.9589]
[1741743492482,0.05956851,125.69,125.68,38.2789]
[1741743495585,0.05956851,125.69,125.68,30.32]
[1741743495885,0.05956851,125.69,125.67,0.05483946]
[1741743497689,0.05956851,125.69,125.67,8.01433946]
[1741743498882,0.05956851,125.69,125.67,0.05483946]
[1741743499282,0.05956851,125.69,125.68,30.3]
[1741743499588,0.05956851,125.69,125.68,38.2589]
[1741743499983,0.05956851,125.69,125.68,30.3]
[1741743500189,0.05956851,125.69,125.67,8.01393946]
[1741743500590,0.05956851,125.69,125.67,0.05483946]
[1741743500888,0.05956851,125.69,125.68,7.9589]
[1741743501588,0.05956851,125.69,125.67,0.05483946]
[1741743501788,0.05956851,125.69,125.67,8.01393946]
[1741743502182,0.05956851,125.69,125.68,7.9589]
[1741743502986,0.05956851,125.69,125.68,24.58818821]
[1741743503991,0.05956851,125.69,125.68,7.9589]
[1741743504494,0.05956851,125.69,125.67,8.01413946]
[1741743504695,0.05956851,125.69,125.67,0.05483946]
[1741743505095,0.05956851,125.69,125.68,7.9589]
[1741743505391,0.05956851,125.69,125.67,0.05483946]
[1741743506295,0.05956851,125.69,125.67,8.01403946]
[1741743506695,0.05956851,125.69,125.67,0.05483946]
[1741743506897,0.05956851,125.69,125.68,7.9589]
[1741743507800,0.05956851,125.69,125.68,24.58818821]
[1741743509898,6.851e-05,125.69,125.68,24.58818821]
[1741743510401,2.0498,125.74,125.73,7.9557]
[1741743510601,2.0178,125.76,125.71,30.3]
[1741743510901,2.0178,125.76,125.72,30.3]
[1741743511101,2.0178,125.76,125.74,7.9548]
[1741743511296,2.0178,125.76,125.72,30.3]
[1741743511497,0.05438236,125.75,125.73,0.05965901]
[1741743511697,0.05438236,125.75,125.74,7.9551]
[1741743512001,0.05438236,125.75,125.73,0.05965901]
[1741743512804,0.05438236,125.75,125.73,8.01525901]
[1741743513399,0.05438236,125.75,125.74,7.9551]
[1741743514001,0.05438236,125.75,125.73,8.01505901]
[1741743514803,0.05438236,125.75,125.73,0.05965901]
[1741743516802,16.68367057,125.75,125.66,16.62928821]
[1741743517003,7.9568,125.72,125.67,30.3]
[1741743517207,7.9568,125.72,125.68,7.9587]
[1741743517406,7.9568,125.72,125.67,30.3]
[1741743517803,7.957,125.71,125.66,16.62928821]
[1741743518003,8.01269588,125.71,125.68,0.05661892]
[1741743519206,0.05569588,125.71,125.68,0.05661892]
[1741743521312,0.05569588,125.71,125.68,8.01541892]
[1741743521613,0.05569588,125.71,125.68,0.05661892]
[1741743522217,7.9583,125.69,125.68,0.05661892]
[1741743522412,2.123,125.7,125.68,0.05661892]
[1741743523413,7.9612,125.65,125.61,30.3]
[1741743523712,30.3,125.67,125.59,16.62928821]
[1741743523915,30.3,125.67,125.6,30.3]
[1741743524116,7.9612,125.65,125.6,30.3]
[1741743524417,8.02059187,125.65,125.62,0.05982881]
[1741743524809,0.05939187,125.65,125.62,0.05982881]
[1741743525412,0.05939187,125.65,125.63,7.9617]
[1741743526119,0.05939187,125.65,125.64,7.9614]
[1741743528117,9.187e-05,125.65,125.64,7.9614]
[1741743529013,4.1946,125.73,125.64,19.00928821]
[1741743529217,4.1946,125.73,125.67,16.62928821]
[1741743529421,4.1946,125.73,125.69,7.9578]
[1741743530122,0.05056201,125.72,125.7,0.05236166]
[1741743531209,0.05056201,125.72,125.71,7.957]
[1741743531411,0.05056201,125.72,125.71,54.88628821]
[1741743534225,0.05056201,125.72,125.71,38.257]
[1741743538019,6.201e-05,125.72,125.71,38.257]
[1741743543225,6.201e-05,125.72,125.71,30.3]
[1741743543427,6.201e-05,125.72,125.7,8.00966166]
[1741743543726,6.201e-05,125.72,125.7,0.05236166]
[1741743544829,6.201e-05,125.72,125.71,7.957]
[1741743545319,6.201e-05,125.72,125.7,0.05236166]
[1741743545521,6.201e-05,125.72,125.7,8.00946166]
[1741743546130,6.201e-05,125.72,125.71,7.957]
[1741743547725,4.165,125.78,125.7,56.89114261]
[1741743547931,4.165,125.78,125.76,7.9538]
[1741743548933,4.21620049,125.78,125.76,8.00567378]
[1741743549732,4.21620049,125.78,125.76,0.05187378]
[1741743550335,12.16880049,125.78,125.76,0.05187378]
[1741743550635,4.21620049,125.78,125.76,0.05187378]
[1741743551639,12.16930049,125.78,125.76,0.05187378]
[1741743551835,4.21620049,125.78,125.76,0.05187378]
[1741743552639,0.05120049,125.78,125.76,0.05187378]
[1741743552940,0.05120049,125.78,125.76,30.33187378]
[1741743553341,0.05120049,125.78,125.77,7.9532]
[1741743554440,0.05120049,125.78,125.77,24.53677402]
[1741743555439,0.05120049,125.78,125.77,16.58357402]
[1741743555647,0.05120049,125.78,125.76,30.33187378]
[1741743556544,0.05120049,125.78,125.76,38.28557378]
[1741743557445,0.05120049,125.78,125.76,30.33187378]
[1741743557643,0.05120049,125.78,125.77,7.9532]
[1741743558547,0.05120049,125.78,125.76,38.28547378]
[1741743559342,0.05120049,125.78,125.77,7.9532]
[1741743559552,0.05120049,125.78,125.76,30.33187378]
[1741743560847,0.05120049,125.78,125.77,7.9532]
[1741743562855,0.05120049,125.78,125.77,24.53677402]
[1741743564450,2.068,125.85,125.82,7.95]
[1741743564650,4.105,125.85,125.82,7.95]
[1741743564853,4.105,125.85,125.79,46.86357402]
[1741743565346,12.0532,125.85,125.81,7.9504]
[1741743565545,4.105,125.85,125.82,0.06057194]
[1741743565748,0.05655469,125.84,125.82,0.06057194]
[1741743566045,0.05655469,125.84,125.79,38.2315]
[1741743566245,0.05655469,125.84,125.79,30.28]
[1741743566441,0.05655469,125.84,125.77,46.84357402]
[1741743566641,46.84357402,125.83,125.75,16.58357402]
[1741743566848,16.58357402,125.81,125.73,285.42357402]
[1741743567051,4.143,125.8,125.73,285.42357402]
[1741743567346,8.01285752,125.78,125.76,0.05268778]
[1741743567552,0.05985752,125.78,125.73,238.58]
[1741743567748,7.9545,125.75,125.71,7.9568]
[1741743568153,16.58357402,125.79,125.7,238.17864507]
[1741743568355,16.58357402,125.79,125.71,7.9564]
[1741743568648,16.58357402,125.79,125.74,0.05957141]
[1741743568953,7.9545,125.75,125.71,7.9564]
[1741743569354,10.0267,125.75,125.7,246.13614507]
[1741743569553,10.0267,125.75,125.7,238.17864507]
[1741743569847,2.0717,125.75,125.7,246.13604507]
[1741743570050,2.0717,125.75,125.71,0.05787607]
[1741743570853,10.0266,125.75,125.71,0.05787607]
[1741743571447,2.0717,125.75,125.71,0.05787607]
[1741743572753,7.9556,125.74,125.71,0.05787607]
[1741743573755,7.9556,125.74,125.71,8.01487607]
[1741743573956,7.9556,125.74,125.71,0.05787607]
[1741743574250,10.1404,125.74,125.71,0.05787607]
[1741743574555,2.1848,125.74,125.71,0.05787607]
[1741743574950,32.4648,125.74,125.67,255.08357402]
[1741743575160,32.4648,125.74,125.67,285.36357402]
[1741743575450,40.4201,125.74,125.7,7.9575]
[1741743575658,40.4201,125.74,125.67,285.36357402]
[1741743575852,10.1401,125.74,125.67,285.36357402]
[1741743576054,0.05245294,125.72,125.7,7.9572]
[1741743576253,0.05245294,125.72,125.69,0.03705484]
[1741743576654,0.05245294,125.72,125.7,7.9576]
[1741743576952,0.05245294,125.72,125.69,0.03705484]
[1741743577255,2.0687,125.8,125.71,16.58357402]
[1741743577459,4.2468,125.8,125.74,16.58357402]
[1741743577758,4.2468,125.8,125.77,7.9528]
[1741743578155,4.2468,125.8,125.76,7.9538]
[1741743578356,4.30602009,125.8,125.77,0.06060472]
[1741743578756,4.30602009,125.8,125.75,30.28]
[1741743579359,4.30602009,125.8,125.77,7.9527]
[1741743579555,4.30602009,125.8,125.75,30.28]
[1741743580060,4.30602009,125.8,125.77,7.9527]
[1741743580255,4.30602009,125.8,125.76,0.02890306]
[1741743580660,7.952,125.79,125.76,0.02890306]
[1741743581459,7.952,125.79,125.76,7.98270306]
[1741743581661,7.952,125.79,125.76,0.02890306]
[1741743581960,4.30602009,125.8,125.76,0.02890306]
[1741743582362,30.28,125.79,125.72,16.58357402]
[1741743582561,46.86357402,125.79,125.7,46.86357402]
[1741743582960,7.9549,125.75,125.71,7.9567]
[1741743583162,46.86357402,125.79,125.7,46.86357402]
[1741743583361,7.953,125.78,125.74,7.9546]
[1741743583556,0.05234951,125.76,125.74,7.9546]
[1741743584266,0.05234951,125.76,125.73,30.28]
[1741743584455,0.05234951,125.76,125.75,7.9545]
[1741743587366,7.9496,125.83,125.74,16.58357402]
[1741743587564,6.3356,125.85,125.79,7.9515]
[1741743587965,6.3356,125.85,125.78,16.58357402]
[1741743588372,7.9492,125.84,125.78,16.58357402]
[1741743588568,0.0517096,125.83,125.8,0.05234951]
[1741743589072,7.95,125.82,125.8,0.05234951]
[1741743590073,0.0517096,125.83,125.8,0.05234951]
[1741743590674,46.89528362,125.83,125.75,238.54]
[1741743590882,16.58357402,125.81,125.73,38.2155]
[1741743591077,16.58357402,125.79,125.71,238.15002024]
[1741743591277,2.0858,125.78,125.71,207.89002024]
[1741743591474,46.84357402,125.77,125.69,238.54]
[1741743591674,0.05718073,125.74,125.69,238.54]
[1741743592182,7.9563,125.73,125.69,238.54]
[1741743592675,0.05718073,125.74,125.69,238.54]
[1741743592884,7.9564,125.72,125.69,238.54]
[1741743593180,0.05718073,125.74,125.69,238.54]
[1741743593480,7.9559,125.73,125.69,246.4982]
[1741743594586,0.05718073,125.74,125.69,246.4982]
[1741743595085,0.05718073,125.74,125.69,238.54]
[1741743595280,8.01248073,125.74,125.7,7.9574]
[1741743595681,0.05718073,125.74,125.69,238.54]
[1741743595882,0.05718073,125.74,125.72,7.9563]
[1741743598381,0.05718073,125.74,125.69,238.54]
[1741743598382,0.05718073,125.74,125.71,7.9567]
[1741743598981,0.05718073,125.74,125.72,7.9563]
[1741743599791,0.05718073,125.74,125.69,238.54]
[1741743599989,0.05718073,125.74,125.68,46.84357402]
[1741743600190,16.58357402,125.73,125.64,16.58357402]
[1741743600387,6.1248,125.72,125.64,16.58357402]
[1741743600594,0.05507949,125.7,125.64,16.58357402]
[1741743601292,0.05507949,125.7,125.67,7.9591]
[1741743601698,0.05507949,125.7,125.68,7.9585]
[1741743602193,0.05507949,125.7,125.66,46.86357402]
[1741743603096,0.05507949,125.7,125.69,7.9583]
[1741743604794,0.05507949,125.7,125.68,16.58357402]
[1741743605592,0.05507949,125.7,125.69,7.9583]
[1741743606999,0.05507949,125.7,125.66,46.86357402]
[1741743607596,0.05507949,125.7,125.67,7.9594]
[1741743607797,0.05507949,125.7,125.66,46.86357402]
[1741743608293,0.05507949,125.7,125.69,7.9583]
[1741743608498,0.05507949,125.7,125.66,46.86357402]
[1741743608703,0.05507949,125.7,125.68,7.9584]
[1741743608899,16.58357402,125.69,125.6,46.86357402]
[1741743609299,0.05940892,125.66,125.63,7.9615]
[1741743609505,0.05940892,125.66,125.62,16.58357402]
[1741743609900,0.05940892,125.66,125.65,7.9608]
[1741743610403,4.2903,125.71,125.64,16.58357402]
[1741743610606,2.1073,125.74,125.66,16.58357402]
[1741743610801,196.1525,125.79,125.7,16.58357402]
[1741743611099,4.1525,125.79,125.74,16.58357402]
[1741743611295,2.1073,125.8,125.76,16.58357402]
[1741743611501,0.05977473,125.79,125.77,0.05196671]
[1741743617310,8.01177473,125.79,125.77,0.05196671]
[1741743617503,0.05977473,125.79,125.77,0.05196671]
[1741743620008,7.9526,125.78,125.77,0.05196671]
[1741743620209,0.05977473,125.79,125.73,30.26]
[1741743620412,26.60167075,125.79,125.68,26.54189602]
[1741743620708,7.955,125.75,125.7,7.9572]
[1741743621107,30.26,125.77,125.69,30.26]
[1741743621307,0.05850614,125.74,125.68,30.26]
[1741743622213,7.9569,125.72,125.68,30.26]
[1741743622409,6.4875,125.76,125.68,30.26]
[1741743622712,0.0552578,125.71,125.69,7.9579]
[1741743622910,7.9555,125.74,125.69,7.9579]
[1741743623110,0.05610958,125.71,125.68,30.26]
[1741743623305,0.05610958,125.71,125.7,7.9576]
[1741743623511,0.05610958,125.71,125.68,30.26]
[1741743624410,0.05610958,125.71,125.68,38.2185]
[1741743624615,0.05610958,125.71,125.68,30.26]
[1741743624918,0.05610958,125.71,125.69,7.9578]
[1741743625105,0.05610958,125.71,125.68,30.26]
[1741743627211,0.05610958,125.71,125.68,38.2185]
[1741743627410,0.05610958,125.71,125.66,26.54189602]
[1741743627716,0.05610958,125.71,125.68,7.9589]
[1741743628716,0.05610958,125.71,125.7,7.9576]
[1741743630914,0.05610958,125.71,125.69,30.26]
[1741743631516,0.05610958,125.71,125.7,7.9576]
[1741743636718,0.05610958,125.71,125.7,24.56867806]
[1741743636924,30.26,125.78,125.73,7.9557]
[1741743637123,36.4546,125.8,125.73,7.9557]
[1741743637419,36.4546,125.8,125.72,46.87107806]
[1741743637722,16.61107806,125.79,125.7,46.87107806]
[1741743637917,16.61107806,125.79,125.73,7.9554]
[1741743638112,0.05102099,125.76,125.73,0.05818422]
[1741743638316,0.05102099,125.76,125.73,30.31818422]
[1741743638514,0.05102099,125.76,125.74,7.9547]
[1741743638819,0.05102099,125.76,125.73,30.31818422]
[1741743639318,2.0714,125.8,125.74,16.61107806]
[1741743639517,32.3176,125.83,125.76,16.61107806]
[1741743639715,2.0576,125.83,125.79,7.9516]
[1741743640025,2.0576,125.83,125.76,46.87107806]
[1741743640418,7.9513,125.81,125.76,46.87107806]
[1741743640617,8.01093594,125.81,125.78,0.05531945]
[1741743641327,0.05963594,125.81,125.78,0.05531945]
[1741743641826,0.05963594,125.81,125.78,8.00741945]
[1741743642723,0.05963594,125.81,125.79,7.9518]
[1741743644926,0.05963594,125.81,125.8,7.9513]
[1741743645130,2.0554,125.87,125.8,16.61107806]
[1741743645327,10.0025,125.87,125.83,7.9491]
[1741743645929,2.0554,125.87,125.83,7.9491]
[1741743646129,7.9476,125.86,125.82,38.2097]
[1741743646331,0.05891591,125.86,125.84,0.05922029]
[1741743647929,0.05891591,125.86,125.85,30.24]
[1741743648236,2.1859,125.92,125.85,30.24]
[1741743648434,2.1859,125.92,125.87,7.9468]
[1741743648435,10.1301,125.92,125.87,7.9468]
[1741743648735,32.4259,125.92,125.83,30.8355]
[1741743648929,7.9461,125.89,125.82,16.61107806]
[1741743649137,7.9461,125.89,125.83,30.24]
[1741743649336,0.05647445,125.87,125.84,0.0508285]
[1741743649534,0.05647445,125.87,125.84,7.9990285]
[1741743649734,0.05647445,125.87,125.84,0.0508285]
[1741743650237,0.05647445,125.87,125.85,7.9476]
[1741743650432,0.05647445,125.87,125.84,0.0508285]
[1741743650836,0.05647445,125.87,125.84,7.9992285]
[1741743651036,0.05647445,125.87,125.84,16.66190656]
[1741743651335,0.05647445,125.87,125.85,7.9481]
[1741743651832,0.05647445,125.87,125.84,16.66190656]
[1741743652036,0.05647445,125.87,125.85,7.9481]
[1741743653140,0.05647445,125.87,125.86,7.9475]
[1741743653436,0.05647445,125.87,125.84,16.66190656]
[1741743653735,0.05647445,125.87,125.85,7.9476]
[1741743654732,0.05647445,125.87,125.84,7.9993285]
[1741743655441,8.00347445,125.87,125.84,7.9993285]
[1741743655827,0.05647445,125.87,125.84,0.0508285]
[1741743656835,0.05647445,125.87,125.84,7.9992285]
[1741743657026,0.05647445,125.87,125.84,0.0508285]
[1741743657227,0.05647445,125.87,125.85,7.9481]
[1741743657426,0.05647445,125.87,125.84,0.0508285]
[1741743657737,0.05647445,125.87,125.84,7.9993285]
[1741743657932,0.05647445,125.87,125.84,0.0508285]
[1741743658236,7.9479,125.86,125.84,0.0508285]
[1741743659434,0.05647445,125.87,125.84,0.0508285]
[1741743659936,7.9475,125.86,125.84,0.0508285]
[1741743660630,0.05647445,125.87,125.84,0.0508285]
[1741743660836,1.9845,125.86,125.84,0.0508285]
[1741743661335,0.05647445,125.87,125.84,0.0508285]
[1741743662037,8.00377445,125.87,125.84,0.0508285]
[1741743662537,8.00377445,125.87,125.84,7.9994285]
[1741743662742,8.00377445,125.87,125.84,0.0508285]
[1741743663841,0.05647445,125.87,125.84,0.0508285]
[1741743664142,0.05647445,125.87,125.84,46.88190656]
[1741743664342,0.05647445,125.87,125.86,16.61107806]
[1741743664843,16.61107806,125.97,125.86,16.61107806]
[1741743665037,6.3558,125.97,125.91,16.61107806]
[1741743665238,6.3558,125.97,125.93,7.9426]
[1741743665437,6.3558,125.97,125.91,46.83107806]
[1741743665639,6.3558,125.97,125.91,30.22]
[1741743665945,53.18687806,125.97,125.88,30.22]
[1741743666239,0.05004756,125.95,125.93,0.05347825]
[1741743668236,0.05004756,125.95,125.93,16.66455631]
[1741743668442,0.05004756,125.95,125.94,38.1625]
[1741743668741,0.05004756,125.95,125.93,0.05347825]
[1741743669533,30.27004756,125.95,125.89,238.34]
[1741743669748,4.0404,125.94,125.87,46.83107806]
[1741743670043,7.9433,125.93,125.88,7.9458]
[1741743670441,20.65147806,125.94,125.85,46.83107806]
[1741743670642,16.66991142,125.92,125.89,0.05855343]
[1741743671045,0.05883336,125.92,125.89,0.05855343]
[1741743672238,8.00273336,125.92,125.89,0.05855343]
[1741743672640,0.05883336,125.92,125.89,0.05855343]
[1741743672841,0.05883336,125.92,125.91,16.61107806]
[1741743673041,2.1865,125.99,125.91,46.83107806]
[1741743673243,2.1865,125.99,125.94,16.61107806]
[1741743673445,2.1865,125.99,125.94,46.83107806]
[1741743673640,2.1865,125.99,125.96,16.61107806]
[1741743673838,10.9486583,126.04,125.98,16.61107806]
[1741743674242,0.05895295,126.02,126.0,0.05871156]
[1741743675145,17.26614772,126.02,126.0,0.05871156]
[1741743675647,0.05895295,126.02,126.0,0.05871156]
[1741743677248,7.9381,126.01,126.0,0.05871156]
[1741743677447,0.05895295,126.02,125.96,30.48]
[1741743677748,7.9385,126.01,125.96,38.4212]
[1741743678649,0.05916065,126.0,125.97,0.05990159]
[1741743679746,0.05916065,126.0,125.99,7.9393]
[1741743680049,0.05916065,126.0,125.97,0.05990159]
[1741743680346,0.05916065,126.0,125.98,7.9395]
[1741743680547,0.05916065,126.0,125.97,0.05990159]
[1741743681449,0.05916065,126.0,125.97,8.00010159]
[1741743681850,0.05916065,126.0,125.97,0.05990159]
[1741743682845,0.05916065,126.0,125.92,30.42]
[1741743683041,0.05916065,126.0,125.92,56.86619343]
[1741743683348,7.9397,125.99,125.94,7.942]
[1741743683539,2.0635,126.0,125.94,7.942]
[1741743683744,2.0635,126.0,125.95,7.9418]
[1741743683944,2.0635,126.0,125.92,56.86619343]
[1741743684245,0.05571642,125.98,125.96,0.05098066]
[1741743684452,0.05571642,125.98,125.92,56.86619343]
[1741743684453,30.57571642,125.98,125.89,30.52]
[1741743684646,28.57139343,125.97,125.89,30.52]
[1741743685543,0.06043349,125.94,125.92,0.05576332]
[1741743685948,0.06043349,125.94,125.87,30.54]
[1741743686447,8.00303349,125.94,125.87,30.54]
[1741743686653,8.00303349,125.94,125.86,30.54]
[1741743686853,0.06043349,125.94,125.86,30.54]
[1741743687151,0.05723343,125.91,125.9,7.945]